[Event "WYCC 2018 O14"]
[Site "Halkidiki"]
[Date "2018.10.27"]
[Round "8"]
[White "Ngo, Duc Tri"]
[Black "Popov, Konstantin"]
[Result "1/2-1/2"]
[ECO "B20"]
[WhiteElo "1883"]
[BlackElo "2304"]
[Annotator "NA"]
[PlyCount "155"]
[EventDate "2018.10.20"]
[EventType "swiss"]
[EventCountry "GRE"]
[SourceTitle "playchess.com"]
[Source "ChessBase"]
[SourceQuality "1"]
[TimeControl "40/5400+30:1800+30"]

1. e4 {[%emt 0:07:22]} c5 {[%emt 0:00:00]} 2. Bc4 {[%emt 0:00:05]} d6 {[%emt 0:02:05]} 3. Nf3 {[%emt 0:04:04]} Nf6 {[%emt 0:00:59]} 4. c3 {[%emt 0:02:18]} Nc6 {[%emt 0:13:34]} 5. d3 {[%emt 0:07:42]} g6 {[%emt 0:00:44]} 6. Be3 {[%emt 0:04:40]} Bg7 {[%emt 0:01:26]} 7. Nbd2 {[%emt 0:01:41]} O-O {[%emt 0:00:46]} 8. O-O {[%emt 0:00:12]} Na5 {[%emt 0:05:30]} 9. Bd5 {[%emt 0:08:44]} e6 {[%emt 0:01:27]} 10. Bb3 {[%emt 0:00:03]} Nxb3 {[%emt 0:00:28]} 11. Qxb3 {[%emt 0:00:07]} b6 {[%emt 0:01:46]} 12. Rad1 {[%emt 0:00:14]} Bb7 {[%emt 0:03:26]} 13. Rfe1 {[%emt 0:01:57]} Qc7 {[%emt 0:00:41]} 14. h3 {[%emt 0:01:03]} e5 {[%emt 0:04:51]} 15. Bg5 {[%emt 0:10:33]} Nh5 {[%emt 0:09:04]} 16. Nf1 {[%emt 0:01:22]} h6 {[%emt 0:03:07]} 17. Bh4 {[%emt 0:05:08]} Nf4 {[%emt 0:01:40]} 18. Bg3 {[%emt 0:00:04]} Rae8 {[%emt 0:02:11]} 19. Ne3 {[%emt 0:04:31]} Ne6 {[%emt 0:01:45]} 20. Nd5 {[%emt 0:04:05]} Qd7 {[%emt 0:00:33]} 21. d4 {[%emt 0:01:29]} cxd4 {[%emt 0:06:22]} 22. cxd4 {[%emt 0:01:08]} exd4 {[%emt 0:00:09]} 23. Qa3 {[%emt 0:00:46]} f5 {[%emt 0:05:30]} 24. Bxd6 {[%emt 0:12:31]} fxe4 {[%emt 0:07:33]} 25. Bxf8 {[%emt 0:00:06]} Nxf8 {[%emt 0:09:23]} 26. Nxd4 {[%emt 0:01:54]} Bxd5 {[%emt 0:04:10]} 27. Nc2 {[%emt 0:04:25]} Qf7 {[%emt 0:00:15]} 28. Nb4 {[%emt 0:03:20]} Ba8 {[%emt 0:02:17]} 29. Nc2 {[%emt 0:00:38]} Ne6 {[%emt 0:00:28]} 30. b4 {[%emt 0:01:24]} Nf4 {[%emt 0:01:41]} 31. Qa4 {[%emt 0:01:57]} Bd5 {[%emt 0:01:02]} 32. Ne3 {[%emt 0:00:25]} Be6 {[%emt 0:00:14]} 33. Ng4 {[%emt 0:02:38]} Bxg4 {[%emt 0:03:10]} 34. hxg4 {[%emt 0:00:06]} Re7 {[%emt 0:02:32]} 35. Qc6 {[%emt 0:04:06]} Nd3 {[%emt 0:03:18]} 36. Rxe4 {[%emt 0:00:03]} Qxf2+ {[%emt 0:01:26]} 37. Kh1 {[%emt 0:00:01]} Rxe4 {[%emt 0:01:25]} 38. Qxe4 {[%emt 0:00:14]} Ne5 {[%emt 0:00:13]} 39. a4 {[%emt 0:01:47]} Qh4+ {[%emt 0:00:57]} 40. Kg1 {[%emt 0:00:00]} Nxg4 {[%emt 0:00:00]} 41. Qf4 {[%emt 0:09:49]} h5 {[%emt 0:09:01]} 42. b5 {[%emt 0:11:17]} Be5 {[%emt 0:11:48]} 43. Qc4+ {[%emt 0:01:33]} Kh8 {[%emt 0:01:01]} 44. Qc8+ {[%emt 0:03:05]} Kh7 {[%emt 0:00:33]} 45. Rd7+ {[%emt 0:00:06]} Bg7 {[%emt 0:01:00]} 46. Rxg7+ {[%emt 0:00:16]} Kxg7 {[%emt 0:00:12]} 47. Qc7+ {[%emt 0:00:08]} Kh6 {[%emt 0:00:14]} 48. Qf4+ {[%emt 0:00:05]} Kg7 {[%emt 0:00:22]} 49. Qc7+ {[%emt 0:00:05]} Kf8 {[%emt 0:00:22]} 50. Qc8+ {[%emt 0:02:55]} Kf7 {[%emt 0:00:36]} 51. Qc4+ {[%emt 0:00:10]} Kf6 {[%emt 0:03:51]} 52. Qf4+ {[%emt 0:02:32]} Ke6 {[%emt 0:00:05]} 53. Qe4+ {[%emt 0:00:44]} Kf7 {[%emt 0:00:55]} 54. Qc4+ {[%emt 0:00:04]} Ke7 {[%emt 0:01:18]} 55. Qc7+ {[%emt 0:00:52]} Ke6 {[%emt 0:00:29]} 56. Qc4+ {[%emt 0:00:50]} Ke5 {[%emt 0:02:07]} 57. Qc3+ {[%emt 0:00:08]} Kd6 {[%emt 0:02:12]} 58. Qc6+ {[%emt 0:00:32]} Ke7 {[%emt 0:00:50]} 59. Qc7+ {[%emt 0:00:03]} Ke6 {[%emt 0:00:56]} 60. Qc4+ {[%emt 0:00:19]} Ke7 {[%emt 0:01:38]} 61. Qc7+ {[%emt 0:00:18]} Ke8 {[%emt 0:00:00]} 62. Qc6+ {[%emt 0:00:10]} Kf7 {[%emt 0:00:00]} 63. Qc4+ {[%emt 0:00:08]} Kg7 {[%emt 0:00:00]} 64. Qc7+ {[%emt 0:00:12]} Kh6 {[%emt 0:00:53]} 65. Qf4+ {[%emt 0:00:07]} g5 {[%emt 0:00:05]} 66. Qd6+ {[%emt 0:00:43]} Kg7 {[%emt 0:00:02]} 67. Qe7+ {[%emt 0:00:07]} Kg6 {[%emt 0:00:04]} 68. Qe4+ {[%emt 0:00:01]} Kf6 {[%emt 0:00:10]} 69. Qc6+ {[%emt 0:00:03]} Kf5 {[%emt 0:00:31]} 70. Qf3+ {[%emt 0:00:39]} Ke5 {[%emt 0:01:12]} 71. Qc3+ {[%emt 0:00:05]} Kf5 {[%emt 0:02:35]} 72. Qf3+ {[%emt 0:00:09]} Kg6 {[%emt 0:00:44]} 73. Qe4+ {[%emt 0:00:28]} Kg7 {[%emt 0:00:37]} 74. Qe7+ {[%emt 0:00:11]} Kg6 {[%emt 0:00:24]} 75. Qe4+ {[%emt 0:00:04]} Kf7 {[%emt 0:00:07]} 76. Qd5+ {[%emt 0:00:44]} Kf6 {[%emt 0:00:25]} 77. Qd6+ {[%emt 0:00:06]} Kf5 {[%emt 0:00:14]} 78. Qd3+ {[%emt 0:00:06]} 1/2-1/2

[Event "WYCC 2018 O14"]
[Site "Halkidiki"]
[Date "2018.10.27"]
[Round "8"]
[White "Naqopia, Giorgi"]
[Black "Soriano Quispe, Ivan Excender"]
[Result "1-0"]
[ECO "B06"]
[WhiteElo "1857"]
[BlackElo "2054"]
[Annotator "NA"]
[PlyCount "97"]
[EventDate "2018.10.20"]
[EventType "swiss"]
[EventCountry "GRE"]
[SourceTitle "playchess.com"]
[Source "ChessBase"]
[SourceQuality "1"]
[TimeControl "40/5400+30:1800+30"]

1. e4 {[%emt 0:00:00]} g6 {[%emt 0:00:00]} 2. d4 {[%emt 0:00:00]} Bg7 {[%emt 0:00:00]} 3. Nf3 {[%emt 0:00:00]} d6 {[%emt 0:00:25]} 4. Bc4 {[%emt 0:00:00]} e6 {[%emt 0:00:47]} 5. Bg5 {[%emt 0:01:04]} Ne7 {[%emt 0:00:51]} 6. Nc3 {[%emt 0:04:14]} a6 {[%emt 0:01:37]} 7. a4 {[%emt 0:00:53]} Nd7 {[%emt 0:05:39]} 8. Qd2 {[%emt 0:01:41]} h6 {[%emt 0:05:29]} 9. Be3 {[%emt 0:00:26]} b6 {[%emt 0:04:54]} 10. Bb3 {[%emt 0:08:02]} Bb7 {[%emt 0:03:08]} 11. h4 {[%emt 0:04:36]} Nf6 {[%emt 0:01:26]} 12. h5 {[%emt 0:07:10]} Nxe4 {[%emt 0:26:07]} 13. Nxe4 {[%emt 0:00:11]} Bxe4 {[%emt 0:00:04]} 14. hxg6 {[%emt 0:00:03]} Nxg6 {[%emt 0:05:11]} 15. O-O-O {[%emt 0:00:16]} Qf6 {[%emt 0:04:46]} 16. Ne1 {[%emt 0:07:17]} Ne7 {[%emt 0:12:06]} 17. f3 {[%emt 0:08:33]} Bb7 {[%emt 0:00:27]} 18. Nd3 {[%emt 0:06:46]} Nf5 {[%emt 0:03:07]} 19. Nf4 {[%emt 0:00:49]} Nxe3 {[%emt 0:05:25]} 20. Nh5 {[%emt 0:00:08]} Qg6 {[%emt 0:01:57]} 21. Qxe3 {[%emt 0:00:35]} O-O-O {[%emt 0:01:14]} 22. Bc4 {[%emt 0:05:34]} Bf8 {[%emt 0:02:49]} 23. Qe2 {[%emt 0:17:48]} Qg5+ {[%emt 0:00:46]} 24. Kb1 {[%emt 0:00:15]} a5 {[%emt 0:01:51]} 25. Ba6 {[%emt 0:07:04]} Kb8 {[%emt 0:01:34]} 26. Bxb7 {[%emt 0:00:07]} Kxb7 {[%emt 0:00:01]} 27. f4 {[%emt 0:00:18]} Qg6 {[%emt 0:00:35]} 28. d5 {[%emt 0:03:30]} exd5 {[%emt 0:01:21]} 29. Rxd5 {[%emt 0:02:34]} c6 {[%emt 0:00:34]} 30. Rd3 {[%emt 0:01:58]} d5 {[%emt 0:00:46]} 31. f5 {[%emt 0:01:12]} Qd6 {[%emt 0:03:39]} 32. Re1 {[%emt 0:04:03]} Qc7 {[%emt 0:01:53]} 33. Qf3 {[%emt 0:03:04]} Bc5 {[%emt 0:00:50]} 34. Ng7 {[%emt 0:01:10]} Rhg8 {[%emt 0:01:53]} 35. f6 {[%emt 0:00:11]} Bf8 {[%emt 0:01:12]} 36. Rde3 {[%emt 0:01:35]} Bc5 {[%emt 0:01:08]} 37. R3e2 {[%emt 0:00:47]} Kb8 {[%emt 0:00:23]} 38. Qf5 {[%emt 0:01:02]} Qc8 {[%emt 0:01:32]} 39. Qh5 {[%emt 0:00:00]} Bd4 {[%emt 0:00:00]} 40. Qxh6 {[%emt 0:00:00]} Qc7 {[%emt 0:00:00]} 41. Re7 {[%emt 0:05:54]} Qg3 {[%emt 0:26:03]} 42. Nf5 {[%emt 0:01:02]} Rg6 {[%emt 0:00:02]} 43. Nxg3 {[%emt 0:00:32]} Rxh6 {[%emt 0:00:05]} 44. Nf5 {[%emt 0:00:03]} Rxf6 {[%emt 0:00:50]} 45. Nxd4 {[%emt 0:00:06]} c5 {[%emt 0:00:04]} 46. Nb5 {[%emt 0:00:35]} Rg8 {[%emt 0:00:42]} 47. Rd7 {[%emt 0:01:50]} Re6 {[%emt 0:00:19]} 48. Rf1 {[%emt 0:00:12]} f6 {[%emt 0:00:18]} 49. Rh1 {[%emt 0:00:04]} 1-0

[Event "WYCC 2018 O14"]
[Site "Halkidiki"]
[Date "2018.10.28"]
[Round "9"]
[White "Stoyanov, Tsvetan"]
[Black "Trifan, Andrei Ioan"]
[Result "1/2-1/2"]
[ECO "C45"]
[WhiteElo "2340"]
[BlackElo "2290"]
[Annotator "NA"]
[PlyCount "84"]
[EventDate "2018.10.20"]
[EventType "swiss"]
[EventCountry "GRE"]
[SourceTitle "playchess.com"]
[Source "ChessBase"]
[SourceQuality "1"]
[TimeControl "40/5400+30:1800+30"]

1. e4 {[%emt 0:00:00]} e5 {[%emt 0:00:05]} 2. Nf3 {[%emt 0:00:00]} Nc6 {[%emt 0:00:29]} 3. d4 {[%emt 0:00:00]} exd4 {[%emt 0:00:54]} 4. Nxd4 {[%emt 0:00:06]} Bc5 {[%emt 0:00:46]} 5. Nxc6 {[%emt 0:00:16]} Qf6 {[%emt 0:03:19]} 6. Qf3 {[%emt 0:00:20]} dxc6 {[%emt 0:04:12]} 7. Nc3 {[%emt 0:03:08]} Be6 {[%emt 0:06:29]} 8. Qg3 {[%emt 0:02:34]} O-O-O {[%emt 0:08:56]} 9. Be3 {[%emt 0:00:50]} Bxe3 {[%emt 0:12:25]} 10. Qxe3 {[%emt 0:00:11]} Qd4 {[%emt 0:02:07]} 11. Qxd4 {[%emt 0:02:56]} Rxd4 {[%emt 0:01:10]} 12. Bd3 {[%emt 0:03:33]} Nf6 {[%emt 0:03:33]} 13. f3 {[%emt 0:08:15]} Nd7 $11 {[%emt 0:07:33]} 14. Ne2 {[%emt 0:11:52]} Rd6 {[%emt 0:03:44]} 15. Nf4 {[%emt 0:03:39]} Ne5 {[%emt 0:03:28]} 16. b3 {[%emt 0:07:33]} Bd7 {[%emt 0:06:10]} 17. h4 {[%emt 0:02:54]} f5 {[%emt 0:05:37]} 18. Ke2 {[%emt 0:06:52]} Rf8 {[%emt 0:02:38]} 19. Ke3 {[%emt 0:01:40]} c5 {[%emt 0:04:23]} 20. Rad1 {[%emt 0:11:24]} c4 {[%emt 0:04:21]} 21. Be2 {[%emt 0:05:23]} Rxd1 {[%emt 0:01:10]} 22. Rxd1 {[%emt 0:02:17]} fxe4 {[%emt 0:00:30]} 23. fxe4 {[%emt 0:02:25]} cxb3 {[%emt 0:00:36]} 24. axb3 {[%emt 0:04:18]} Re8 {[%emt 0:00:42]} 25. Ra1 {[%emt 0:03:40]} a6 {[%emt 0:01:05]} 26. Ra5 {[%emt 0:01:11]} Bc6 {[%emt 0:04:35]} 27. Bf3 {[%emt 0:01:59]} Nf7 {[%emt 0:02:33]} 28. Nh5 {[%emt 0:01:35]} Rg8 {[%emt 0:03:38]} 29. Rf5 {[%emt 0:02:53]} Nd6 {[%emt 0:01:18]} 30. Rg5 {[%emt 0:00:47]} g6 {[%emt 0:01:00]} 31. Nf6 {[%emt 0:01:28]} Rf8 {[%emt 0:01:33]} 32. Ng4 {[%emt 0:04:51]} Re8 {[%emt 0:01:54]} 33. Re5 {[%emt 0:01:35]} Rf8 {[%emt 0:01:00]} 34. h5 {[%emt 0:01:04]} Kd8 {[%emt 0:01:06]} 35. hxg6 {[%emt 0:00:55]} hxg6 {[%emt 0:00:02]} 36. Re6 {[%emt 0:01:20]} Be8 {[%emt 0:01:04]} 37. Ne5 {[%emt 0:01:23]} Rg8 {[%emt 0:00:34]} 38. Kf4 {[%emt 0:00:39]} g5+ {[%emt 0:00:16]} 39. Kg4 {[%emt 0:00:50]} Nb5 {[%emt 0:01:04]} 40. Rh6 {[%emt 0:00:00]} Nd4 {[%emt 0:00:00]} 41. Bd1 {[%emt 0:07:07]} a5 {[%emt 0:05:15]} 42. Rh3 {[%emt 0:10:18]} Nc6 {[%emt 0:03:23]} 1/2-1/2

[Event "WYCC 2018 O14"]
[Site "Halkidiki"]
[Date "2018.10.28"]
[Round "9"]
[White "Vettese, Nicholas"]
[Black "Marn, Jan"]
[Result "1/2-1/2"]
[ECO "C47"]
[WhiteElo "2338"]
[BlackElo "2125"]
[Annotator "NA"]
[PlyCount "115"]
[EventDate "2018.10.20"]
[EventType "swiss"]
[EventCountry "GRE"]
[SourceTitle "playchess.com"]
[Source "ChessBase"]
[SourceQuality "1"]
[TimeControl "40/5400+30:1800+30"]

1. e4 {[%emt 0:00:00]} e5 {[%emt 0:00:00]} 2. Nf3 {[%emt 0:00:00]} Nc6 {[%emt 0:00:00]} 3. Nc3 {[%emt 0:00:00]} Nf6 {[%emt 0:00:07]} 4. d4 {[%emt 0:00:03]} exd4 {[%emt 0:00:13]} 5. Nxd4 {[%emt 0:00:10]} Bb4 {[%emt 0:00:14]} 6. Nxc6 {[%emt 0:00:11]} bxc6 {[%emt 0:00:03]} 7. Bd3 {[%emt 0:00:13]} O-O {[%emt 0:00:10]} 8. O-O {[%emt 0:00:08]} d5 {[%emt 0:00:02]} 9. exd5 {[%emt 0:00:13]} cxd5 {[%emt 0:00:07]} 10. h3 {[%emt 0:00:07] C47: Scotch Four Knights and Four Knights with 4 g3} c6 {[%emt 0:07:23]} 11. Qf3 {[%emt 0:00:11]} h6 {[%emt 0:01:01]} (11... Bd6 12. Bf4 Be6 13. Rfe1 Bxf4 14. Qxf4 Qb8 15. Qxb8 Raxb8 16. Na4 Nd7 17. b3 c5 {½-½ (35) Nakamura,H (2777)-So,W (2780) Saint Louis 2018}) 12. Bf4 {[%emt 0:02:49]} Bd6 {[%emt 0:00:28]} 13. Na4 {[%emt 0:00:49]} Qc7 $146 {[%emt 0:07:59]} ({Predecessor:} 13... Rb8 14. c4 Be6 15. Rfd1 Qc7 16. Bxd6 Qxd6 17. b3 Rbd8 18. cxd5 Bxd5 19. Qe3 Rd7 {½-½ (41) Kaufman,L (2400)-Sasikiran,K (2470) Hampstead 1998}) 14. Bxh6 {[%emt 0:05:53]} Ne4 {[%emt 0:00:53]} 15. Bc1 {[%emt 0:12:19]} f5 {[%emt 0:02:36]} 16. Rd1 {[%emt 0:07:17]} Bh2+ {[%emt 0:04:55]} 17. Kh1 {[%emt 0:05:32]} Be5 {[%emt 0:00:09]} 18. c4 {[%emt 0:10:08]} Qa5 {[%emt 0:30:18]} 19. Bc2 {[%emt 0:02:34]} Ba6 {[%emt 0:01:03]} 20. cxd5 $16 {[%emt 0:03:32]} cxd5 21. Bf4 {[%emt 0:04:43]} Bxf4 {[%emt 0:08:44]} 22. Qxf4 {[%emt 0:00:23]} Rac8 23. Nc3 {[%emt 0:11:21]} Nxc3 {[%emt 0:08:41]} 24. bxc3 {[%emt 0:00:10]} Qxc3 {[%emt 0:00:48]} 25. Rac1 Bc4 {[%emt 0:13:21]} 26. Bd3 {[%emt 0:09:32]} Qb2 {[%emt 0:05:09]} 27. Rc2 {[%emt 0:00:15]} Qb5 {[%emt 0:03:34]} 28. Rdc1 {[%emt 0:03:47]} Qa6 {[%emt 0:03:46]} 29. Rxc4 {[%emt 0:01:54]} dxc4 {[%emt 0:00:18]} 30. Bxc4+ {[%emt 0:00:06]} Rxc4 {[%emt 0:00:03]} 31. Qxc4+ {[%emt 0:00:09]} Qxc4 {[%emt 0:00:03]} 32. Rxc4 {[%emt 0:00:07]} Re8 {[%emt 0:00:17]} 33. Rc7 {[%emt 0:00:38]} Re2 {[%emt 0:01:25]} 34. Rxa7 {[%emt 0:00:06]} Rxf2 {[%emt 0:00:07]} 35. Kg1 {[%emt 0:00:34]} Rb2 {[%emt 0:00:47]} 36. a4 {[%emt 0:03:07]} Ra2 {[%emt 0:02:27]} 37. a5 {[%emt 0:01:00]} f4 {[%emt 0:00:28]} 38. a6 {[%emt 0:00:35]} Kh7 {[%emt 0:00:29]} 39. Ra8 {[%emt 0:02:03]} Kg6 {[%emt 0:00:40]} 40. a7 {[%emt 0:00:00]} Kf7 {[%emt 0:00:00]} 41. h4 Kg6 {[%emt 0:01:57]} 42. h5+ {[%emt 0:04:51]} Kh7 {[%emt 0:00:23]} 43. Kf1 {[%emt 0:00:50]} Ra6 {[%emt 0:07:10]} 44. Ke2 {[%emt 0:05:31]} Ra3 {[%emt 0:01:30]} 45. Kf2 {[%emt 0:02:06]} Ra2+ {[%emt 0:00:07]} 46. Kf3 {[%emt 0:00:15]} Ra4 {[%emt 0:00:05]} 47. Kg4 {[%emt 0:02:27]} Ra5 {[%emt 0:00:14]} 48. Kxf4 {[%emt 0:01:25]} Ra4+ {[%emt 0:00:31]} 49. Ke5 {[%emt 0:02:45]} Ra5+ {[%emt 0:00:07]} 50. Ke6 {[%emt 0:02:08]} g6 {[%emt 0:00:33]} 51. h6 {[%emt 0:04:24]} Ra1 {[%emt 0:00:39]} 52. g4 {[%emt 0:01:11]} Re1+ {[%emt 0:01:00]} 53. Kd5 {[%emt 0:02:13]} Rd1+ {[%emt 0:00:09]} 54. Ke4 {[%emt 0:01:04]} Re1+ {[%emt 0:00:10]} 55. Kf3 {[%emt 0:00:26]} Rf1+ {[%emt 0:00:07]} 56. Kg2 {[%emt 0:00:28]} Ra1 {[%emt 0:00:05]} 57. g5 {[%emt 0:00:20]} Rg1+ {[%emt 0:00:06]} 58. Kxg1 {[%emt 0:01:29]} 1/2-1/2

[Event "WYCC 2018 O14"]
[Site "Halkidiki"]
[Date "2018.10.28"]
[Round "9"]
[White "Tanriverdi, Enes"]
[Black "Wang, Alex"]
[Result "1/2-1/2"]
[ECO "E73"]
[WhiteElo "2317"]
[BlackElo "2076"]
[Annotator "NA"]
[PlyCount "201"]
[EventDate "2018.10.20"]
[EventType "swiss"]
[EventCountry "GRE"]
[SourceTitle "playchess.com"]
[Source "ChessBase"]
[SourceQuality "1"]
[TimeControl "40/5400+30:1800+30"]

1. d4 {[%emt 0:00:00]} Nf6 {[%emt 0:00:00]} 2. c4 {[%emt 0:00:00]} g6 {[%emt 0:00:00]} 3. Nc3 {[%emt 0:00:00]} Bg7 {[%emt 0:00:00]} 4. e4 {[%emt 0:00:00]} d6 {[%emt 0:00:00]} 5. Be2 {[%emt 0:00:00]} O-O {[%emt 0:00:00]} 6. Be3 {[%emt 0:00:02]} e5 {[%emt 0:00:18]} 7. d5 {[%emt 0:00:05]} a5 {[%emt 0:00:43]} 8. g4 {[%emt 0:00:05]} Na6 {[%emt 0:00:56]} 9. g5 {[%emt 0:00:58]} Nd7 {[%emt 0:00:56]} 10. h4 {[%emt 0:00:05]} Ndc5 {[%emt 0:00:56]} 11. h5 {[%emt 0:00:06]} c6 {[%emt 0:00:16]} 12. f3 {[%emt 0:02:58]} Bd7 {[%emt 0:04:44]} 13. Nh3 {[%emt 0:16:48]} cxd5 {[%emt 0:02:43]} 14. cxd5 {[%emt 0:00:34]} a4 {[%emt 0:03:40]} 15. Qd2 {[%emt 0:07:14]} Qe8 {[%emt 0:10:54]} 16. Nf2 $11 {[%emt 0:01:49]} b5 {[%emt 0:08:02]} 17. hxg6 {[%emt 0:30:42]} fxg6 {[%emt 0:03:19]} 18. Rd1 {[%emt 0:01:27]} Qb8 {[%emt 0:31:15]} 19. Kf1 {[%emt 0:01:21]} Qb7 {[%emt 0:04:27]} 20. Kg2 {[%emt 0:01:28]} Rac8 {[%emt 0:00:20]} 21. Rh4 {[%emt 0:03:11]} Rf7 {[%emt 0:05:20]} 22. Rdh1 {[%emt 0:00:24]} Bf8 {[%emt 0:00:24]} 23. Bd1 {[%emt 0:02:23]} b4 {[%emt 0:03:16]} 24. Ne2 {[%emt 0:00:11]} Nc7 {[%emt 0:00:05]} 25. Ng3 {[%emt 0:04:00]} b3 {[%emt 0:03:59]} 26. a3 {[%emt 0:00:46]} Nb5 {[%emt 0:00:43]} 27. Nf1 {[%emt 0:03:40]} Nxa3 {[%emt 0:01:20]} 28. bxa3 {[%emt 0:02:14]} b2 {[%emt 0:00:03]} 29. Bc2 {[%emt 0:00:03]} Nb3 {[%emt 0:06:53]} 30. Qd1 {[%emt 0:00:33]} Nd4 {[%emt 0:00:32]} 31. Bb1 {[%emt 0:03:53]} Nxf3 {[%emt 0:00:38]} 32. R4h3 {[%emt 0:04:46]} Bxh3+ {[%emt 0:01:23]} 33. Rxh3 {[%emt 0:00:07]} Nd4 {[%emt 0:00:43]} 34. Bxd4 {[%emt 0:08:20]} Rc1 {[%emt 0:03:10]} 35. Qd3 {[%emt 0:00:06]} exd4 {[%emt 0:00:06]} 36. Nd2 {[%emt 0:03:48]} Bg7 {[%emt 0:01:44]} 37. Qe2 {[%emt 0:02:13]} Rfc7 {[%emt 0:01:18]} 38. Nd3 {[%emt 0:00:20]} R7c3 {[%emt 0:01:33]} 39. Qg4 {[%emt 0:01:47]} Qe7 {[%emt 0:01:44]} 40. e5 {[%emt 0:00:00]} dxe5 {[%emt 0:00:00]} 41. d6 {[%emt 0:01:30]} Qxd6 {[%emt 0:23:06]} 42. Qh4 {[%emt 0:00:31]} Qd5+ {[%emt 0:01:51]} 43. Ne4 {[%emt 0:06:54]} R3c2+ {[%emt 0:05:02]} 44. Ndf2 {[%emt 0:07:26]} Rxb1 {[%emt 0:00:16]} 45. Qxh7+ {[%emt 0:00:12]} Kf8 {[%emt 0:00:02]} 46. Rf3+ {[%emt 0:00:47]} Ke8 {[%emt 0:00:12]} 47. Qxg6+ {[%emt 0:02:36]} Kd8 {[%emt 0:00:04]} 48. Qxg7 {[%emt 0:01:46]} Rg1+ {[%emt 0:02:10]} 49. Kxg1 {[%emt 0:02:48]} b1=Q+ {[%emt 0:00:04]} 50. Kh2 {[%emt 0:00:05]} Qd7 {[%emt 0:01:29]} 51. Rf8+ {[%emt 0:00:40]} Kc7 {[%emt 0:00:05]} 52. Rf7 {[%emt 0:01:39]} Qbb5 {[%emt 0:01:35]} 53. g6 {[%emt 0:00:11]} d3 {[%emt 0:01:33]} 54. Rxd7+ {[%emt 0:01:08]} Qxd7 {[%emt 0:00:01]} 55. Qxd7+ {[%emt 0:00:17]} Kxd7 {[%emt 0:00:03]} 56. g7 {[%emt 0:00:05]} Rc8 {[%emt 0:01:21]} 57. g8=Q {[%emt 0:00:15]} Rxg8 {[%emt 0:00:06]} 58. Nf6+ {[%emt 0:00:03]} Ke6 {[%emt 0:00:25]} 59. Nxg8 {[%emt 0:00:05]} Kd5 {[%emt 0:00:31]} 60. Nf6+ {[%emt 0:07:26]} Kc4 {[%emt 0:00:08]} 61. N6e4 {[%emt 0:00:09]} Kb3 {[%emt 0:00:09]} 62. Nxd3 {[%emt 0:00:32]} Kxa3 {[%emt 0:00:04]} 63. Nec5 {[%emt 0:00:17]} e4 {[%emt 0:00:25]} 64. Nxe4 {[%emt 0:00:36]} Kb3 {[%emt 0:00:03]} 65. Ndc5+ {[%emt 0:00:10]} Kc2 {[%emt 0:00:05]} 66. Nxa4 {[%emt 0:00:18]} Kd3 {[%emt 0:00:21]} 67. Nac5+ {[%emt 0:00:04]} Ke3 {[%emt 0:00:05]} 68. Kg3 {[%emt 0:00:03]} Kd4 {[%emt 0:00:06]} 69. Kf4 {[%emt 0:00:04]} Kd5 {[%emt 0:00:05]} 70. Kf5 {[%emt 0:00:21]} Kd4 {[%emt 0:00:04]} 71. Nd7 {[%emt 0:00:10]} Kd5 {[%emt 0:00:05]} 72. Nf8 {[%emt 0:00:08]} Kd4 {[%emt 0:00:05]} 73. Ne6+ {[%emt 0:00:08]} Kd5 {[%emt 0:00:03]} 74. Nf6+ {[%emt 0:00:05]} Kd6 {[%emt 0:00:10]} 75. Nf4 {[%emt 0:00:05]} Kc5 {[%emt 0:00:13]} 76. Ke5 {[%emt 0:00:07]} Kc4 {[%emt 0:00:03]} 77. Ne4 {[%emt 0:00:03]} Kb5 {[%emt 0:00:54]} 78. Kd5 {[%emt 0:00:13]} Kb4 {[%emt 0:00:03]} 79. Nd3+ {[%emt 0:00:05]} Kb3 {[%emt 0:00:51]} 80. Kd4 {[%emt 0:00:08]} Kc2 {[%emt 0:00:04]} 81. Ndc5 {[%emt 0:00:29]} Kb2 {[%emt 0:01:57]} 82. Kd3 {[%emt 0:00:06]} Kc1 {[%emt 0:00:10]} 83. Nc3 {[%emt 0:00:41]} Kb2 {[%emt 0:00:03]} 84. Nd1+ {[%emt 0:01:11]} Kc1 {[%emt 0:00:08]} 85. Ne3 {[%emt 0:00:03]} Kb2 {[%emt 0:00:03]} 86. Kd2 {[%emt 0:00:04]} Kb1 {[%emt 0:00:04]} 87. Nc4 {[%emt 0:00:42]} Ka1 {[%emt 0:00:22]} 88. Kc1 {[%emt 0:00:08]} Ka2 {[%emt 0:00:02]} 89. Kc2 {[%emt 0:00:04]} Ka1 {[%emt 0:00:03]} 90. Kb3 {[%emt 0:01:13]} Kb1 {[%emt 0:00:04]} 91. Nd3 {[%emt 0:00:03]} Ka1 {[%emt 0:00:04]} 92. Ne3 {[%emt 0:01:15]} Kb1 {[%emt 0:00:02]} 93. Nf1 {[%emt 0:00:03]} Ka1 {[%emt 0:00:11]} 94. Ne1 {[%emt 0:00:03]} Kb1 {[%emt 0:00:04]} 95. Nd2+ {[%emt 0:00:03]} Kc1 {[%emt 0:00:03]} 96. Nf1 {[%emt 0:00:45]} Kd1 {[%emt 0:00:20]} 97. Nf3 {[%emt 0:00:11]} Ke2 {[%emt 0:00:04]} 98. N3d2 {[%emt 0:00:04]} Kd3 {[%emt 0:00:05]} 99. Nf3 {[%emt 0:00:07]} Ke2 {[%emt 0:00:03]} 100. N3d2 {[%emt 0:00:12]} Kd3 {[%emt 0:00:04]} 101. Ne3 1/2-1/2